bitfinex-derivatives/quotes_SOLF0:USTF0_20260314
["timestamp","ask_amount","ask_price","bid_price","bid_amount"]
[1773484505870,4.00208892,86.59,86.524,3.70936657]
[1773484506078,4.00208892,86.583,86.524,3.70936657]
[1773484506380,36.32,86.618,86.492,3.70936657]
[1773484506381,4.00208892,86.581,86.492,3.70936657]
[1773484506581,4.00208892,86.579,86.492,3.70936657]
[1773484506781,4.00208892,86.577,86.492,3.70936657]
[1773484506984,10.72220007,86.582,86.492,3.70936657]
[1773484506985,4.00208892,86.575,86.492,3.70936657]
[1773484507282,4.00208892,86.573,86.492,3.70936657]
[1773484507579,4.00208892,86.548,86.427,3.70936657]
[1773484507780,4.00208892,86.546,86.427,3.70936657]
[1773484507978,4.00208892,86.544,86.427,3.70936657]
[1773484508181,4.00208892,86.542,86.427,3.70936657]
[1773484508582,4.00208892,86.522,86.443,3.70936657]
[1773484509277,4.00208892,86.522,86.449,3.70936657]
[1773484510181,4.00208892,86.522,86.467,10.406]
[1773484511180,4.00208892,86.549,86.471,3.70936657]
[1773484512578,9.41416528,86.581,86.476,3.70936657]
[1773484512579,4.00208892,86.547,86.476,3.70936657]
[1773484513386,4.00208892,86.547,86.48,3.70936657]
[1773484514178,4.00208892,86.544,86.48,3.70936657]
[1773484514785,10.398,86.539,86.48,3.70936657]
[1773484514986,4.00208892,86.538,86.483,3.70936657]
[1773484515890,4.00208892,86.538,86.473,36.34]
[1773484515891,4.00208892,86.538,86.485,3.70936657]
[1773484517290,4.00208892,86.538,86.493,10.403]
[1773484517685,4.00208892,86.538,86.494,3.70936657]
[1773484518190,4.00208892,86.563,86.494,3.70936657]
[1773484519289,4.00208892,86.561,86.494,3.70936657]
[1773484521392,3.83416365,86.558,86.494,3.70936657]
[1773484522292,3.83416365,86.558,86.497,10.403]
[1773484524996,3.83416365,86.558,86.502,10.402]
[1773484525393,3.83416365,86.558,86.502,14.24368258]
[1773484525599,3.83416365,86.558,86.505,10.402]
[1773484526496,3.83416365,86.558,86.505,14.24368258]
[1773484527595,3.83416365,86.558,86.507,10.402]
[1773484527797,3.83416365,86.558,86.508,3.84168258]
[1773484528795,3.83416365,86.558,86.512,10.401]
[1773484531494,3.83416365,86.553,86.508,3.84168258]
[1773484534899,3.83416365,86.553,86.502,10.402]
[1773484534900,3.83416365,86.553,86.51,3.84168258]
[1773484536999,3.83416365,86.569,86.515,3.84168258]
[1773484537704,3.83416365,86.565,86.515,3.84168258]
[1773484538506,14.22916365,86.561,86.515,3.84168258]
[1773484538709,3.83416365,86.56,86.515,3.84168258]
[1773484541808,3.83416365,86.56,86.518,3.84168258]
[1773484542015,14.22816365,86.57,86.518,3.84168258]
[1773484542608,14.22816365,86.57,86.52,3.84168258]
[1773484542808,3.83416365,86.569,86.52,3.84168258]
[1773484543620,3.83416365,86.569,86.524,14.24168258]
[1773484544210,3.83416365,86.569,86.525,3.84168258]
[1773484547221,9.50188658,86.568,86.525,3.84168258]
[1773484547421,3.83416365,86.569,86.525,3.84168258]
[1773484547720,9.50188658,86.568,86.525,3.84168258]
[1773484547918,3.83416365,86.569,86.525,3.84168258]
[1773484548117,9.50186908,86.568,86.525,3.84168258]
[1773484548318,9.5145225,86.567,86.525,3.84168258]
[1773484548521,9.5145225,86.566,86.527,3.73057275]
[1773484548820,9.5145225,86.565,86.527,3.73057275]
[1773484549021,9.5145225,86.564,86.527,3.73057275]
[1773484549322,9.51980551,86.563,86.527,3.73057275]
[1773484549621,9.51980551,86.562,86.527,3.73057275]
[1773484549825,3.83416365,86.569,86.527,3.73057275]
[1773484550022,9.51974905,86.568,86.527,3.73057275]
[1773484550223,9.51974905,86.567,86.527,3.73057275]
[1773484550423,9.51974905,86.566,86.527,3.73057275]
[1773484550618,9.51974905,86.565,86.527,3.73057275]
[1773484550819,9.51974905,86.564,86.527,3.73057275]
[1773484551019,9.51974905,86.563,86.527,3.73057275]
[1773484551221,9.51974905,86.562,86.527,3.73057275]
[1773484551422,3.83416365,86.569,86.527,3.73057275]
[1773484551622,9.5213737,86.568,86.527,3.73057275]
[1773484551825,9.5213737,86.567,86.527,3.73057275]
[1773484552125,9.5213737,86.566,86.527,3.73057275]
[1773484552426,9.5213737,86.565,86.527,3.73057275]
[1773484552623,9.5213737,86.564,86.527,3.73057275]
[1773484552818,10.394,86.572,86.5,36.34]
[1773484552819,3.92614562,86.58,86.529,3.66227162]
[1773484553017,3.92614562,86.578,86.529,3.66227162]
[1773484553216,9.52252838,86.577,86.529,3.66227162]
[1773484553527,9.52252838,86.576,86.529,3.66227162]
[1773484553824,3.92614562,86.574,86.538,3.66227162]
[1773484554026,3.92614562,86.572,86.514,3.66227162]
[1773484555622,14.32014562,86.572,86.524,3.66227162]
[1773484556624,14.32014562,86.572,86.528,3.66227162]
[1773484557021,3.92614562,86.524,86.447,3.66227162]
[1773484557326,3.92614562,86.522,86.447,3.66227162]
[1773484557927,3.92614562,86.52,86.452,3.66227162]
[1773484559532,3.92614562,86.513,86.454,3.66227162]
[1773484560329,3.92614562,86.554,86.454,3.66227162]
[1773484560523,3.92614562,86.552,86.454,3.66227162]
[1773484560724,3.92614562,86.55,86.454,3.66227162]
[1773484560923,3.92614562,86.55,86.43,62.0]
[1773484560924,3.92614562,86.548,86.474,10.406]
[1773484561130,3.92614562,86.546,86.475,3.66227162]
[1773484561431,3.92614562,86.544,86.475,3.66227162]
[1773484561626,3.92614562,86.542,86.475,3.66227162]
[1773484561826,20.789,86.568,86.43,62.0]
[1773484561827,3.92614562,86.535,86.477,3.66227162]
[1773484562132,3.92614562,86.579,86.477,3.66227162]
[1773484562332,3.92614562,86.568,86.477,3.66227162]
[1773484562536,3.92614562,86.566,86.477,3.66227162]
[1773484562727,3.92614562,86.564,86.477,3.66227162]
[1773484562922,3.92614562,86.562,86.477,3.66227162]
[1773484563129,3.92614562,86.56,86.477,3.66227162]
[1773484563629,3.92614562,86.56,86.475,36.34]
[1773484563630,3.92614562,86.556,86.495,3.66227162]
[1773484564232,3.92614562,86.556,86.51,3.66227162]
[1773484565131,3.92614562,86.556,86.511,10.401]
[1773484565829,3.92614562,86.556,86.49,3.66227162]
[1773484566627,3.92614562,86.556,86.509,3.66227162]
[1773484570839,3.92614562,86.556,86.513,3.66227162]
[1773484572740,3.92614562,86.556,86.515,3.66227162]
[1773484587147,3.92614562,86.556,86.489,36.34]
[1773484587148,3.92614562,86.556,86.517,3.66840271]
[1773484588244,10.394,86.572,86.517,3.66840271]
[1773484588448,3.86479652,86.571,86.532,3.66840271]
[1773484589749,3.86479652,86.571,86.535,10.398]
[1773484590845,3.86479652,86.591,86.539,3.66840271]
[1773484591048,3.86479652,86.589,86.539,3.66840271]
[1773484592550,3.86479652,86.589,86.548,10.397]
[1773484595350,3.86479652,86.589,86.548,14.06540271]
[1773484596047,3.86479652,86.589,86.549,3.66840271]
[1773484598651,3.86479652,86.589,86.553,3.66840271]
[1773484599150,3.86479652,86.605,86.553,3.66840271]
[1773484599555,3.86479652,86.605,86.558,3.66840271]
[1773484600954,3.86479652,86.603,86.558,3.66840271]
[1773484602757,3.86479652,86.601,86.558,3.66840271]
[1773484605851,10.39,86.607,86.56,3.1509172]
[1773484606052,10.39,86.607,86.561,3.66840271]
[1773484606247,14.25479652,86.607,86.561,3.66840271]
[1773484606452,14.25479652,86.607,86.56,3.1509172]
[1773484606453,3.86479652,86.607,86.566,3.66840271]
[1773484607455,3.86479652,86.607,86.568,3.66840271]
[1773484613858,3.86479652,86.607,86.57,3.1509172]
[1773484614060,3.86479652,86.607,86.571,3.90404826]
[1773484616063,4.01685722,86.618,86.581,3.90404826]
[1773484618065,4.01685722,86.634,86.582,3.90404826]
[1773484619662,4.01685722,86.632,86.584,3.90404826]
[1773484619864,4.01685722,86.629,86.571,3.90404826]
[1773484620857,4.01685722,86.616,86.571,3.90404826]
[1773484621062,4.01685722,86.616,86.564,10.395]
[1773484621467,4.01685722,86.616,86.565,3.90404826]
[1773484622566,4.01685722,86.614,86.565,3.90404826]
[1773484623569,4.01685722,86.61,86.565,3.90404826]
[1773484624969,4.01685722,86.61,86.571,3.90404826]
[1773484627067,4.01685722,86.61,86.573,3.90404826]
[1773484627273,13.53463514,86.63,86.573,3.90404826]
[1773484627468,4.01685722,86.629,86.573,3.90404826]
[1773484627670,4.01685722,86.629,86.581,3.90404826]
[1773484628474,4.01685722,86.629,86.584,3.90404826]
[1773484629174,4.01685722,86.629,86.591,3.90404826]
[1773484633470,4.01685722,86.619,86.57,10.394]
[1773484633669,4.01685722,86.609,86.568,3.90404826]
[1773484634467,4.01685722,86.607,86.568,3.90404826]
[1773484634673,4.01685722,86.607,86.559,10.395]
[1773484637071,4.01685722,86.607,86.559,14.29904826]
[1773484638071,4.01685722,86.607,86.55,3.14763514]
[1773484638072,4.01685722,86.607,86.562,14.29904826]
[1773484638577,4.01685722,86.607,86.563,3.90404826]
[1773484639881,4.01685722,86.607,86.553,10.396]
[1773484640274,4.01685722,86.607,86.554,3.90404826]
[1773484641180,4.01685722,86.607,86.558,10.396]
[1773484641381,4.01685722,86.607,86.559,3.88559459]
[1773484644685,4.01685722,86.607,86.564,3.88559459]
[1773484645188,3.69373751,86.605,86.564,3.88559459]
[1773484653293,3.69373751,86.603,86.564,3.88559459]
[1773484654498,10.39,86.602,86.564,3.88559459]
[1773484654700,3.69373751,86.601,86.564,3.88559459]
[1773484658398,3.69373751,86.601,86.567,3.88559459]
[1773484658602,10.389,86.611,86.567,3.88559459]
[1773484662605,14.08273751,86.611,86.567,3.88559459]
[1773484663204,9.52879485,86.61,86.567,3.88559459]
[1773484663404,3.69373751,86.61,86.567,3.88559459]
[1773484665005,3.69373751,86.608,86.567,3.88559459]
[1773484665797,3.69373751,86.608,86.566,10.395]
[1773484666004,3.69373751,86.589,86.55,36.34]
[1773484666298,3.69373751,86.569,86.532,36.34]
[1773484666503,3.69373751,86.569,86.528,3.88559459]
[1773484666905,3.69373751,86.568,86.528,3.88559459]
[1773484672814,3.97718106,86.567,86.528,3.88559459]
[1773484677513,3.14763514,86.54,86.494,3.88605197]
[1773484677723,3.14763514,86.55,86.496,7.67989817]
[1773484678011,3.14763514,86.55,86.498,7.67989817]
[1773484678211,3.14763514,86.55,86.5,7.67643244]
[1773484678412,3.14763514,86.55,86.502,7.67643244]
[1773484678612,10.397,86.549,86.502,7.67643244]
[1773484681515,9.47790432,86.586,86.502,7.67643244]
[1773484681715,3.15431289,86.59,86.531,7.66529214]
[1773484681915,3.15431289,86.6,86.541,7.66529214]
[1773484682110,9.47779044,86.599,86.541,7.66529214]
[1773484682310,3.15431289,86.59,86.541,7.66529214]
[1773484684821,10.391,86.599,86.541,7.66529214]
[1773484685920,10.391,86.599,86.542,7.66908647]
[1773484687525,10.391,86.599,86.546,10.397]
[1773484687719,10.391,86.599,86.547,7.68581476]
[1773484688721,10.391,86.599,86.549,7.69193745]
[1773484691927,10.39,86.608,86.551,7.69301386]
[1773484692327,3.15431289,86.6,86.551,7.69301386]
[1773484693326,10.39,86.608,86.553,7.68938955]
[1773484694630,10.39,86.608,86.557,7.68821828]
[1773484695131,9.5317756,86.607,86.557,7.68821828]
[1773484695324,10.39,86.608,86.557,7.68821828]
[1773484695631,9.53388558,86.607,86.557,7.68821828]
[1773484695827,10.39,86.608,86.557,7.68821828]
[1773484696034,9.5337406,86.607,86.557,7.68821828]
[1773484696228,9.53455925,86.606,86.557,7.68821828]
[1773484696428,10.39,86.608,86.557,7.68821828]
[1773484696624,9.53856367,86.607,86.557,7.68821828]
[1773484696829,9.53856367,86.606,86.557,7.68821828]
[1773484697135,10.39,86.608,86.557,7.68821828]
[1773484697336,9.53902883,86.607,86.557,7.68821828]
[1773484697632,9.53902883,86.606,86.559,7.68948981]
[1773484697835,10.39,86.608,86.559,7.68948981]
[1773484698032,9.53920902,86.607,86.559,7.68948981]
[1773484698233,9.53920902,86.606,86.559,7.68948981]
[1773484698433,10.39,86.608,86.559,7.68948981]
[1773484698637,9.53991116,86.607,86.559,7.68948981]
[1773484698824,9.53991116,86.606,86.559,7.68948981]
[1773484699126,10.39,86.608,86.559,7.68948981]
[1773484699325,9.54038323,86.607,86.559,7.68948981]
[1773484699524,9.54038323,86.606,86.559,7.68948981]
[1773484699723,9.54038323,86.605,86.559,7.68948981]
[1773484700032,10.39,86.608,86.559,7.68948981]
[1773484700234,9.54062356,86.607,86.559,7.68948981]
[1773484700534,9.54062356,86.606,86.559,7.68948981]
[1773484700735,9.54062356,86.605,86.561,7.68444217]
[1773484700937,10.389,86.617,86.561,7.68444217]
[1773484701236,9.54157192,86.616,86.563,7.68413165]
[1773484701534,9.54157192,86.615,86.563,7.68413165]
[1773484701730,9.54157192,86.614,86.563,7.68413165]
[1773484701929,9.54157192,86.613,86.563,7.68413165]
[1773484702130,9.54157192,86.612,86.563,7.68413165]
[1773484702333,9.54157192,86.611,86.563,7.68413165]
[1773484702533,9.54157192,86.61,86.566,7.68326825]
[1773484702732,9.54157192,86.609,86.566,7.68326825]
[1773484702931,9.54157192,86.608,86.566,7.68326825]
[1773484703127,3.15431289,86.61,86.566,7.68326825]
[1773484703331,9.54312846,86.609,86.566,7.68326825]
[1773484703530,9.54312846,86.608,86.566,7.68326825]
[1773484703726,9.54312846,86.607,86.566,7.68326825]
[1773484704030,3.15431289,86.61,86.566,7.68326825]
[1773484704335,9.54352872,86.609,86.566,7.68326825]
[1773484704533,9.54352872,86.608,86.566,7.68326825]
[1773484704735,9.54352872,86.607,86.568,7.68323226]
[1773484704933,3.15431289,86.62,86.568,7.68323226]
[1773484705236,9.54491529,86.619,86.57,7.68329235]
[1773484705435,9.54491529,86.618,86.57,7.68329235]
[1773484705629,9.54491529,86.617,86.57,7.68329235]
[1773484705827,9.54491529,86.616,86.57,7.68329235]
[1773484706029,9.54491529,86.615,86.57,7.68329235]
[1773484706229,10.68850504,86.635,86.509,16.82883449]
[1773484706428,3.15431289,86.57,86.512,16.82883449]
[1773484706638,3.15431289,86.57,86.514,16.82883449]
[1773484707633,3.15431289,86.57,86.516,10.401]
[1773484707832,3.15431289,86.57,86.517,16.83126079]
[1773484708538,3.15431289,86.57,86.519,16.77811051]
[1773484709837,3.15431289,86.55,86.519,16.77811051]
[1773484713342,3.15431289,86.56,86.519,16.77811051]
[1773484715541,10.396,86.559,86.519,16.77811051]
[1773484718744,3.15431289,86.56,86.519,16.77811051]
[1773484719743,10.394,86.569,86.519,16.77811051]
[1773484720139,10.394,86.569,86.521,16.71581238]
[1773484731154,10.394,86.569,86.523,16.70215431]
[1773484737359,3.15431289,86.57,86.523,16.70215431]
[1773484737561,10.393,86.579,86.523,16.70215431]
[1773484738658,10.393,86.579,86.525,16.6934504]
[1773484739362,10.393,86.579,86.524,10.4]
[1773484739363,10.393,86.579,86.527,16.69349829]
[1773484739759,10.393,86.579,86.53,19.84781118]
[1773484740361,10.393,86.579,86.53,16.69349829]
[1773484740952,10.393,86.579,86.53,19.84781118]
[1773484741152,10.393,86.579,86.532,16.69610477]
[1773484743264,10.394,86.57,86.532,16.69610477]
[1773484746265,3.15198745,86.6,86.541,16.68699397]
[1773484746464,3.15198745,86.6,86.543,16.68699397]
[1773484746465,9.6081641,86.599,86.543,16.68699397]
[1773484746664,3.15198745,86.6,86.543,16.68699397]
[1773484746665,9.6081641,86.598,86.543,16.68699397]
[1773484746864,9.6081641,86.597,86.543,16.68699397]
[1773484747065,9.6081641,86.596,86.543,16.68699397]
[1773484747270,3.15198745,86.6,86.543,16.68699397]
[1773484747271,9.6081641,86.595,86.543,16.68699397]
[1773484747469,9.6081641,86.594,86.543,16.68699397]
[1773484747669,10.392,86.587,86.543,16.68699397]
[1773484750866,10.392,86.587,86.551,16.69294697]
[1773484751070,10.392,86.587,86.553,16.69294697]
[1773484751678,10.391,86.599,86.553,16.69294697]
[1773484751879,9.61361657,86.598,86.553,16.69294697]
[1773484752078,9.61361657,86.597,86.553,16.69294697]
[1773484752269,9.61361657,86.596,86.553,16.69294697]
[1773484752472,9.61361657,86.595,86.553,16.69294697]
[1773484752678,10.391,86.599,86.553,16.69294697]
[1773484752879,9.61056634,86.598,86.553,16.69294697]
[1773484753074,9.61056634,86.597,86.555,16.69485587]
[1773484753278,9.61056634,86.596,86.555,16.69485587]
[1773484753475,10.391,86.599,86.555,16.69485587]
[1773484753675,9.6078322,86.598,86.555,16.69485587]
[1773484753978,9.6078322,86.597,86.555,16.69485587]
[1773484754178,10.391,86.599,86.555,16.69485587]
[1773484754374,9.60539264,86.598,86.555,16.69485587]
[1773484754579,9.60539264,86.597,86.555,16.69485587]
[1773484754782,10.391,86.599,86.555,16.69485587]
[1773484754975,9.60539264,86.598,86.555,16.69485587]
[1773484755171,10.391,86.599,86.555,16.69485587]
[1773484755376,9.60394765,86.598,86.555,16.69485587]
[1773484755579,10.391,86.599,86.555,16.69485587]
[1773484755778,9.60382849,86.598,86.555,16.69485587]
[1773484755979,10.391,86.599,86.555,16.69485587]
[1773484756281,9.60220088,86.598,86.555,16.69485587]
[1773484756477,9.60220088,86.598,86.554,36.36]
[1773484756478,3.15198745,86.6,86.554,36.36]
[1773484756781,3.15198745,86.59,86.544,16.70282864]
[1773484756978,9.60209109,86.589,86.547,36.36]
[1773484757181,9.60209109,86.588,86.547,36.36]
[1773484757377,9.60209109,86.587,86.544,16.70282864]
[1773484757582,10.393,86.577,86.545,36.34]
[1773484759778,10.392,86.589,86.546,16.6877904]
[1773484760083,9.60133816,86.588,86.546,16.6877904]
[1773484760278,3.15198745,86.6,86.546,16.6877904]
[1773484760584,10.392,86.592,86.546,16.6877904]
[1773484760875,9.60140596,86.591,86.546,16.6877904]
[1773484761076,9.60140596,86.59,86.546,16.6877904]
[1773484761283,9.60140596,86.589,86.546,16.6877904]
[1773484761578,9.60140596,86.588,86.546,16.6877904]
[1773484761784,10.392,86.592,86.546,16.6877904]
[1773484761980,9.60281915,86.591,86.546,16.6877904]
[1773484762180,10.392,86.589,86.546,16.6877904]
[1773484762483,9.60281915,86.588,86.546,16.6877904]
[1773484762680,10.392,86.589,86.546,16.6877904]
[1773484762881,9.60301452,86.588,86.546,16.6877904]
[1773484763076,10.392,86.589,86.546,16.6877904]
[1773484763282,10.392,86.585,86.546,16.6877904]
[1773484766592,10.392,86.585,86.548,16.68923173]
[1773484768288,10.391,86.594,86.548,16.68923173]
[1773484768494,9.60947829,86.593,86.551,16.69048575]
[1773484768791,10.391,86.594,86.551,16.69048575]
[1773484768994,9.60951381,86.593,86.551,16.69048575]
[1773484769190,10.391,86.594,86.551,16.69048575]
[1773484769493,9.61099238,86.593,86.551,16.69048575]
[1773484769695,10.391,86.594,86.551,16.69048575]
[1773484769894,9.61103874,86.593,86.551,16.69048575]
[1773484770094,10.391,86.594,86.551,16.69048575]
[1773484770295,9.61139978,86.593,86.551,16.69048575]
[1773484770493,10.391,86.594,86.551,16.69048575]
[1773484770693,9.61139978,86.593,86.551,16.69048575]
[1773484770896,10.391,86.594,86.551,16.69048575]
[1773484771096,9.61139978,86.593,86.551,16.69048575]
[1773484771297,10.391,86.594,86.551,16.69048575]
[1773484771597,9.61193053,86.593,86.551,16.69048575]
[1773484771797,10.391,86.594,86.551,16.69048575]
[1773484771997,10.392,86.592,86.551,16.69048575]
[1773484773789,10.391,86.601,86.551,16.69048575]
[1773484773995,9.61853537,86.6,86.551,16.69048575]
[1773484774296,9.61853537,86.599,86.551,16.69048575]
[1773484774497,9.61853537,86.598,86.551,16.69048575]
[1773484774697,9.61853537,86.597,86.551,16.69048575]
[1773484774898,9.61853537,86.596,86.551,16.69048575]
[1773484775099,9.61853537,86.595,86.553,16.7129336]
[1773484775299,3.15198745,86.61,86.553,16.7129336]
[1773484775498,10.391,86.599,86.553,16.7129336]
[1773484775697,9.61998502,86.598,86.553,16.7129336]
[1773484775898,9.61998502,86.597,86.553,16.7129336]
[1773484776096,9.61998502,86.596,86.553,16.7129336]
[1773484776393,10.391,86.599,86.553,16.7129336]
[1773484776600,9.62031486,86.598,86.553,16.7129336]
[1773484776801,9.62031486,86.597,86.553,16.7129336]
[1773484777000,9.62031486,86.596,86.553,16.7129336]
[1773484777196,10.391,86.599,86.553,16.7129336]
[1773484777397,9.62080704,86.598,86.561,16.6671823]
[1773484777697,9.62080704,86.597,86.561,16.6671823]
[1773484777896,10.39,86.608,86.561,16.6671823]
[1773484778092,9.62145968,86.607,86.561,16.6671823]
[1773484778291,9.62145968,86.606,86.561,16.6671823]
[1773484778495,9.62145968,86.605,86.561,16.6671823]
[1773484778692,9.62145968,86.604,86.561,16.6671823]
[1773484778894,10.39,86.608,86.561,16.6671823]
[1773484779095,10.39,86.604,86.561,16.6671823]
[1773484779600,10.389,86.612,86.571,16.67033374]
[1773484779993,9.57640292,86.611,86.571,16.67033374]
[1773484780196,9.57640292,86.61,86.571,16.67033374]
[1773484780399,9.57640292,86.609,86.571,16.67033374]
[1773484780595,9.57640292,86.608,86.571,16.67033374]
[1773484780801,9.57640292,86.607,86.571,16.67033374]
[1773484781100,9.57640292,86.606,86.571,16.67033374]
[1773484781303,9.57640292,86.605,86.571,16.67033374]
[1773484781601,9.57640292,86.604,86.571,16.67033374]
[1773484781899,10.388,86.622,86.581,16.67386812]
[1773484782096,9.57914311,86.621,86.583,16.67472024]
[1773484782400,9.57914311,86.62,86.583,16.67472024]
[1773484782600,9.57914311,86.619,86.583,16.67472024]
[1773484782796,9.57914311,86.618,86.583,16.67472024]
[1773484782992,10.388,86.622,86.583,16.67472024]
[1773484783205,9.57793897,86.621,86.583,16.67472024]
[1773484783502,9.57793897,86.62,86.583,16.67472024]
[1773484783702,9.57793897,86.619,86.583,16.67472024]
[1773484783998,10.388,86.622,86.583,16.67472024]
[1773484784202,9.57702511,86.621,86.583,16.67472024]
[1773484784503,9.57702511,86.62,86.583,16.67472024]
[1773484784796,9.57702511,86.62,86.582,36.36]
[1773484784797,3.15198745,86.63,86.585,16.68203]
[1773484785001,3.15198745,86.62,86.586,36.36]
[1773484785904,3.15198745,86.63,86.586,36.36]
[1773484786204,9.57524493,86.629,86.586,36.36]
[1773484786502,10.389,86.616,86.586,36.36]
[1773484788104,10.73132752,86.644,86.497,28.72822314]
[1773484788105,10.39,86.607,86.569,16.68111784]
[1773484788398,9.57009153,86.606,86.558,16.68111784]
[1773484788602,9.57009153,86.605,86.558,16.68111784]
[1773484788797,9.57009153,86.604,86.558,16.68111784]
[1773484789004,9.57009153,86.603,86.558,16.68111784]
[1773484789206,9.57009153,86.602,86.558,16.68111784]
[1773484789401,9.57121312,86.601,86.558,16.68111784]
[1773484789702,3.15198745,86.61,86.558,16.68111784]
[1773484789902,9.57121957,86.609,86.558,16.68111784]
[1773484790094,9.57121957,86.608,86.558,16.68111784]
[1773484790297,9.57121957,86.607,86.558,16.68111784]
[1773484790602,10.39,86.601,86.558,16.68111784]
[1773484790803,9.57121957,86.6,86.558,16.68111784]
[1773484790995,3.15198745,86.61,86.558,16.68111784]
[1773484791194,9.57269311,86.609,86.558,16.68111784]
[1773484791403,9.57269311,86.608,86.558,16.68111784]
[1773484791705,10.391,86.599,86.558,16.68111784]
[1773484791901,9.57269311,86.598,86.558,16.68111784]
[1773484792107,10.391,86.599,86.558,16.68111784]
[1773484792405,9.57543979,86.598,86.558,16.68111784]
[1773484792606,10.391,86.599,86.558,16.68111784]
[1773484792807,9.57544245,86.598,86.558,16.68111784]
[1773484793105,10.391,86.599,86.558,16.68111784]
[1773484793309,9.57562153,86.598,86.558,16.68111784]
[1773484793502,9.57556673,86.597,86.558,16.68111784]
[1773484793703,10.391,86.599,86.558,16.68111784]
[1773484793902,10.391,86.597,86.558,16.68111784]
[1773484795603,10.73132752,86.622,86.561,16.82500187]
[1773484795803,9.5762788,86.621,86.571,16.82500187]
[1773484796001,9.5762788,86.62,86.571,16.82500187]
[1773484796202,9.5762788,86.619,86.571,16.82500187]
[1773484796506,10.39,86.608,86.571,16.82500187]
[1773484796713,9.5762788,86.607,86.571,16.82500187]
[1773484796911,9.5762788,86.606,86.571,16.82500187]
[1773484797114,9.5762788,86.605,86.571,16.82500187]
[1773484797411,9.5762788,86.604,86.571,16.82500187]
[1773484797610,9.5762788,86.603,86.571,16.82500187]
[1773484797910,9.5762788,86.602,86.571,16.82500187]
[1773484798110,10.39,86.608,86.571,16.82500187]
[1773484798312,9.57647209,86.607,86.571,16.82500187]
[1773484798510,9.57647209,86.606,86.571,16.82500187]
[1773484798714,9.57647209,86.605,86.571,16.82500187]
[1773484798912,9.57647209,86.604,86.571,16.82500187]
[1773484799113,9.57647209,86.603,86.571,16.82500187]
[1773484799413,9.57647209,86.602,86.571,16.82500187]
[1773484799614,10.39,86.608,86.571,16.82500187]
[1773484799908,9.57727302,86.607,86.571,16.82500187]
[1773484800112,9.57727302,86.606,86.571,16.82500187]
[1773484800312,9.57727302,86.605,86.571,16.82500187]
[1773484800510,9.57727302,86.604,86.571,16.82500187]
[1773484800708,9.57727302,86.604,86.56,3.15198745]
[1773484800709,9.57727302,86.603,86.558,16.77461312]
[1773484801009,9.57727302,86.602,86.558,16.77461312]
[1773484801211,9.57727302,86.601,86.558,16.77461312]
[1773484801410,3.15198745,86.61,86.558,16.77461312]
[1773484801610,10.392,86.592,86.558,16.77461312]
[1773484804408,10.392,86.592,86.497,63.37822314]
[1773484804409,3.15066643,86.58,86.529,16.7721101]
[1773484804814,9.57422788,86.579,86.529,16.7721101]
[1773484805119,3.15066643,86.59,86.529,16.7721101]
[1773484805315,9.57388752,86.589,86.531,16.77675821]
[1773484805516,10.393,86.577,86.531,16.77675821]
[1773484805713,3.15066643,86.57,86.51,3.15066643]
[1773484805928,3.15066643,86.56,86.511,16.77675821]
[1773484806108,9.5706096,86.559,86.511,16.77675821]
[1773484806416,3.15066643,86.56,86.511,16.77675821]
[1773484806417,10.396,86.555,86.511,16.77675821]
[1773484806810,3.15066643,86.56,86.511,16.77675821]
[1773484807010,10.397,86.546,86.511,16.77675821]
[1773484808413,10.396,86.555,86.511,16.77675821]
[1773484823422,10.395,86.566,86.521,16.80512047]
[1773484824022,10.394,86.575,86.531,16.80805173]
[1773484824922,10.395,86.567,86.531,16.80805173]
[1773484832127,10.394,86.575,86.531,16.80805173]
[1773484835633,10.394,86.575,86.467,34.65]
[1773484835634,3.15066643,86.61,86.551,16.82644108]
[1773484835939,9.52800524,86.609,86.551,16.82644108]
[1773484836134,9.52800524,86.608,86.551,16.82644108]
[1773484836533,10.391,86.598,86.551,16.82644108]
[1773484837938,10.391,86.598,86.561,16.76524857]
[1773484839132,10.39,86.606,86.561,16.76524857]
[1773484840638,10.39,86.606,86.554,36.36]
[1773484840639,10.389,86.615,86.571,16.75378503]
[1773484840831,9.52241661,86.614,86.571,16.75378503]
[1773484841035,10.389,86.615,86.571,16.75378503]
[1773484841639,10.389,86.611,86.571,16.75378503]
[1773484842038,10.388,86.621,86.571,16.75378503]
[1773484842244,9.523322,86.62,86.571,16.75378503]
[1773484842431,9.523322,86.619,86.571,16.75378503]
[1773484842634,9.523322,86.618,86.571,16.75378503]
[1773484842937,9.523322,86.617,86.571,16.75378503]
[1773484843138,9.523322,86.616,86.571,16.75378503]
[1773484843339,9.523322,86.615,86.571,16.75378503]
[1773484843541,10.389,86.615,86.571,16.75378503]